fUSD/lending_fUSD_20250105
["ID","MTS","AMOUNT","RATE_DAILY","PERIOD"]
[347676286,1736050258370,-647.04,0.00010954,2]
[347676287,1736050258380,-697.32,0.00010954,2]
[347676288,1736050258389,-1974.55,0.00010954,2]
[347676289,1736050258398,-500.0,0.00010954,2]
[347676290,1736050258407,-500.0,0.00010954,2]
[347676291,1736050258416,-500.0,0.00010954,2]
[347676292,1736050258425,-500.0,0.00010954,2]
[347676293,1736050258435,-500.0,0.00010954,2]
[347676294,1736050258444,-500.0,0.00010954,2]
[347676295,1736050258453,-446.86,0.00010954,2]
[347676296,1736050258462,-500.0,0.00010954,2]
[347676297,1736050258471,-500.0,0.00010954,2]
[347676298,1736050258481,-500.0,0.00010955,2]
[347676299,1736050258491,-551.86980907,0.00010955,2]
[347676300,1736050258500,-500.0,0.00010955,2]
[347676301,1736050258509,-500.0,0.00010955,2]
[347676302,1736050258518,-510.69,0.00010955,2]
[347676303,1736050258527,-458.40578914,0.00010955,2]
[347676304,1736050258536,-500.0,0.00010955,2]
[347676305,1736050258545,-500.0,0.00010955,2]
[347676306,1736050258554,-500.0,0.00010955,2]
[347676307,1736050258563,-500.0,0.00010955,2]
[347676308,1736050258573,-240.45,0.00010955,2]
[347676309,1736050258582,-500.0,0.00010955,2]
[347676310,1736050258591,-500.0,0.00010955,2]
[347676311,1736050258604,-500.0,0.00010955,2]
[347676312,1736050258613,-180.77,0.00010955,2]
[347676313,1736050258622,-510.70644989,0.00010955,2]
[347676314,1736050258631,-500.0,0.00010955,2]
[347676315,1736050258641,-390.21,0.00010955,2]
[347676316,1736050258650,-500.0,0.00010955,2]
[347676317,1736050258659,-500.0,0.00010955,2]
[347676318,1736050258668,-500.0,0.00010955,2]
[347676319,1736050258678,-500.0,0.00010955,2]
[347676320,1736050258688,-500.0,0.00010955,2]
[347676321,1736050258697,-500.0,0.00010955,2]
[347676322,1736050258706,-500.0,0.00010955,2]
[347676323,1736050258716,-505.96249057,0.00010955,2]
[347676324,1736050258724,-500.0,0.00010955,2]
[347676325,1736050258735,-500.0,0.00010955,2]
[347676326,1736050258744,-500.0,0.00010955,2]
[347676327,1736050258753,-500.0,0.00010955,2]
[347676328,1736050258763,-432.87512006,0.00010955,2]
[347676329,1736050258771,-497.02,0.00010955,2]
[347676330,1736050258780,-500.0,0.00010955,2]
[347676331,1736050258789,-500.0,0.00010955,2]
[347676332,1736050258799,-263.93,0.00010955,2]
[347676333,1736050258808,-1213.93,0.00010955,2]
[347676334,1736050258817,-500.0,0.00010955,2]
[347676335,1736050258826,-1213.93,0.00010955,2]
[347676336,1736050258835,-500.0,0.00010955,2]
[347676337,1736050258844,-500.0,0.00010955,2]
[347676338,1736050258853,-500.0,0.00010955,2]
[347676339,1736050258862,-500.0,0.00010955,2]
[347676340,1736050258871,-500.0,0.00010955,2]
[347676341,1736050258880,-632.88,0.00010955,2]
[347676342,1736050258889,-500.0,0.00010955,2]
[347676343,1736050258899,-500.0,0.00010955,2]
[347676344,1736050258908,-500.0,0.00010955,2]
[347676345,1736050258917,-286.4207012,0.00010955,2]
[347676346,1736050258926,-500.0,0.00010955,2]
[347676347,1736050258935,-500.0,0.00010955,2]
[347676348,1736050258944,-500.0,0.00010955,2]
[347676349,1736050258956,-500.0,0.00010955,2]
[347676350,1736050258966,-500.0,0.00010955,2]
[347676351,1736050258976,-156.44,0.00010955,2]
[347676352,1736050258986,-500.0,0.00010955,2]
[347676353,1736050258995,-213.44,0.00010955,2]
[347676354,1736050259005,-500.0,0.00010955,2]
[347676355,1736050259014,-610.2,0.00010955,2]
[347676356,1736050259023,-408.04,0.00010955,2]
[347676357,1736050259033,-539.82118624,0.00010955,2]
[347676358,1736050259042,-341.56,0.00010955,2]
[347676359,1736050259052,-500.0,0.00010955,2]
[347676360,1736050259061,-584.77,0.00010955,2]
[347676361,1736050259070,-500.0,0.00010955,2]
[347676362,1736050259079,-500.0,0.00010955,2]
[347676363,1736050259089,-500.0,0.00010955,2]
[347676364,1736050259098,-399.06,0.00010955,2]
[347676365,1736050259107,-921.75,0.00010955,2]
[347676366,1736050259116,-883.34,0.00010955,2]
[347676367,1736050259126,-500.0,0.00010955,2]
[347676368,1736050259136,-500.0,0.00010955,2]
[347676369,1736050259146,-500.0,0.00010955,2]
[347676370,1736050259155,-500.0,0.00010955,2]
[347676371,1736050259166,-500.0,0.00010955,2]
[347676372,1736050259177,-493.864676,0.00010955,2]
[347676373,1736050259187,-450.66,0.00010955,2]
[347676374,1736050259199,-376.53979046,0.00010955,2]
[347676375,1736050259209,-500.0,0.00010955,2]
[347676376,1736050259222,-493.864676,0.00010955,2]
[347676377,1736050259232,-500.0,0.00010955,2]
[347676378,1736050259243,-500.0,0.00010955,2]
[347676379,1736050259252,-500.0,0.00010955,2]
[347676380,1736050259261,-500.0,0.00010955,2]
[347676381,1736050259270,-500.0,0.00010955,2]
[347676382,1736050259383,-500.0,0.00010955,2]
[347676383,1736050259394,-500.0,0.00010955,2]
[347676384,1736050259403,-500.0,0.00010955,2]
[347676385,1736050259413,-500.0,0.00010955,2]
[347676386,1736050259423,-500.0,0.00010955,2]
[347676387,1736050259432,-500.0,0.00010955,2]
[347676388,1736050259441,-500.0,0.00010955,2]
[347676389,1736050259451,-500.0,0.00010955,2]
[347676390,1736050259461,-1824.23,0.00010955,2]
[347676391,1736050259470,-1121.67,0.00010955,2]
[347676392,1736050259479,-184.77,0.00010955,2]
[347676393,1736050259489,-500.0,0.00010955,2]
[347676394,1736050259498,-503.13600038,0.00010955,2]
[347676395,1736050259507,-500.0,0.00010955,2]
[347676396,1736050259518,-500.0,0.00010955,2]
[347676397,1736050259528,-500.0,0.00010955,2]
[347676398,1736050259538,-500.0,0.00010955,2]
[347676399,1736050259548,-500.0,0.00010955,2]
[347676400,1736050259558,-500.0,0.00010955,2]
[347676401,1736050259568,-500.0,0.00010955,2]
[347676402,1736050259577,-500.0,0.00010955,2]
[347676403,1736050259588,-168.64,0.00010955,2]
[347676404,1736050259598,-500.0,0.00010955,2]
[347676405,1736050259609,-151.0,0.00010955,2]
[347676406,1736050259619,-500.0,0.00010955,2]
[347676407,1736050259628,-500.0,0.00010955,2]
[347676408,1736050259639,-500.0,0.00010955,2]
[347676409,1736050259650,-500.0,0.00010955,2]
[347676410,1736050259660,-1537.83,0.00010955,2]
[347676411,1736050259670,-500.0,0.00010955,2]
[347676412,1736050259680,-500.0,0.00010955,2]
[347676413,1736050259692,-500.0,0.00010955,2]
[347676414,1736050259702,-500.0,0.00010955,2]
[347676415,1736050259710,-500.0,0.00010955,2]
[347676416,1736050259718,-500.0,0.00010955,2]
[347676417,1736050259729,-583.13,0.00010955,2]
[347676418,1736050259740,-500.0,0.00010955,2]
[347676419,1736050259749,-446.73139556,0.00010955,2]
[347676420,1736050259760,-500.0,0.00010955,2]
[347676421,1736050259771,-500.0,0.00010955,2]
[347676422,1736050259782,-556.70452115,0.00010955,2]
[347676423,1736050259792,-1051.76,0.00010955,2]
[347676424,1736050259802,-500.0,0.00010955,2]
[347676425,1736050259811,-500.0,0.00010955,2]
[347676426,1736050259820,-500.0,0.00010955,2]
[347676427,1736050259830,-500.0,0.00010955,2]
[347676428,1736050259840,-500.0,0.00010955,2]
[347676429,1736050259850,-500.0,0.00010955,2]
[347676430,1736050259860,-500.0,0.00010955,2]
[347676431,1736050259871,-500.0,0.00010955,2]
[347676432,1736050259881,-500.0,0.00010955,2]
[347676433,1736050259891,-500.0,0.00010955,2]
[347676434,1736050259900,-198.93,0.00010955,2]
[347676435,1736050259909,-500.0,0.00010955,2]
[347676436,1736050259918,-551.48,0.00010955,2]
[347676437,1736050259927,-500.0,0.00010955,2]
[347676438,1736050259936,-500.0,0.00010955,2]
[347676439,1736050259945,-500.0,0.00010955,2]
[347676440,1736050259954,-433.9167897,0.00010955,2]
[347676441,1736050259963,-500.0,0.00010955,2]
[347676442,1736050259972,-500.0,0.00010955,2]
[347676443,1736050259981,-2054.529188,0.00010955,2]
[347676444,1736050259990,-500.0,0.00010955,2]
[347676445,1736050260000,-500.0,0.00010955,2]
[347676446,1736050260009,-156.453334,0.00010955,2]
[347676447,1736050260018,-500.0,0.00010955,2]
[347676448,1736050260027,-156.573944,0.00010955,2]
[347676449,1736050260036,-500.0,0.00010955,2]
[347676450,1736050260046,-500.0,0.00010955,2]
[347676451,1736050260056,-500.0,0.00010955,2]
[347676452,1736050260065,-2485.103104,0.00010955,2]
[347676453,1736050260075,-178.01,0.00010955,2]
[347676454,1736050260084,-500.0,0.00010955,2]
[347676455,1736050260094,-437.28374742,0.00010955,2]
[347676456,1736050260104,-500.0,0.00010955,2]
[347676457,1736050260114,-389.5458997,0.00010955,2]
[347676458,1736050260124,-474.02941595,0.00010955,2]
[347676459,1736050260134,-500.0,0.00010955,2]
[347676460,1736050260145,-175.12,0.00010955,2]
[347676461,1736050260156,-500.0,0.00010955,2]
[347676462,1736050260166,-571.34705496,0.00010955,2]
[347676463,1736050260176,-500.0,0.00010955,2]
[347676464,1736050260186,-563.64,0.00010955,2]
[347676465,1736050260195,-500.0,0.00010955,2]
[347676466,1736050260206,-500.0,0.00010955,2]
[347676467,1736050260215,-500.0,0.00010955,2]
[347676468,1736050260224,-500.0,0.00010955,2]
[347676469,1736050260234,-500.0,0.00010955,2]
[347676470,1736050260243,-339.52,0.00010955,2]
[347676471,1736050260255,-500.0,0.00010955,2]
[347676472,1736050260265,-500.0,0.00010955,2]
[347676473,1736050260275,-500.0,0.00010955,2]
[347676474,1736050260285,-1702.81,0.00010955,2]
[347676475,1736050260294,-1702.81,0.00010955,2]
[347676476,1736050260303,-500.0,0.00010955,2]
[347676477,1736050260314,-774.42,0.00010955,2]
[347676478,1736050260323,-742.16,0.00010955,2]
[347676479,1736050260333,-500.0,0.00010955,2]
[347676480,1736050260343,-500.0,0.00010955,2]
[347676481,1736050260353,-1223.22,0.00010955,2]
[347676482,1736050260364,-500.0,0.00010955,2]
[347676483,1736050260374,-500.0,0.00010955,2]
[347676484,1736050260383,-855.88,0.00010955,2]
[347676485,1736050260392,-500.0,0.00010955,2]
[347676486,1736050260402,-500.0,0.00010955,2]
[347676487,1736050260412,-2411.56,0.00010955,2]
[347676488,1736050260421,-500.0,0.00010955,2]
[347676489,1736050260432,-1220.88,0.00010955,2]
[347676490,1736050260441,-500.0,0.00010955,2]
[347676491,1736050260451,-500.0,0.00010955,2]
[347676492,1736050260459,-2183.4,0.00010955,2]
[347676493,1736050260467,-500.0,0.00010955,2]
[347676494,1736050260476,-571.7,0.00010955,2]
[347676495,1736050260487,-172.09,0.00010955,2]
[347676496,1736050260495,-500.0,0.00010955,2]
[347676497,1736050260505,-5564.09,0.00010955,2]
[347676498,1736050260514,-560.89,0.00010955,2]
[347676499,1736050260523,-202.35,0.00010955,2]
[347676500,1736050260532,-560.84,0.00010955,2]
[347676501,1736050260542,-500.0,0.00010955,2]
[347676502,1736050260551,-500.0,0.00010955,2]
[347676503,1736050260560,-1048.42,0.00010955,2]
[347676504,1736050260569,-2041.17,0.00010955,2]
[347676505,1736050260578,-788.54,0.00010955,2]
[347676506,1736050260587,-500.0,0.00010955,2]
[347676507,1736050260599,-500.0,0.00010955,2]
[347676508,1736050260610,-500.0,0.00010955,2]
[347676509,1736050260619,-626.09,0.00010955,2]
[347676510,1736050260628,-2900.25,0.00010955,2]
[347676511,1736050260639,-661.63,0.00010955,2]
[347676512,1736050260648,-500.0,0.00010955,2]
[347676513,1736050260658,-500.0,0.00010955,2]
[347676514,1736050260668,-1474.79,0.00010955,2]
[347676515,1736050260677,-500.0,0.00010955,2]
[347676516,1736050260687,-500.0,0.00010955,2]
[347676517,1736050260697,-598.05289436,0.00010955,2]
[347676518,1736050260707,-500.0,0.00010955,2]
[347676519,1736050260716,-500.0,0.00010955,2]
[347676520,1736050260725,-603.17,0.00010955,2]
[347676521,1736050260735,-500.0,0.00010955,2]
[347676522,1736050260744,-1135.74,0.00010955,2]
[347676523,1736050260754,-1957.98,0.00010955,2]
[347676524,1736050260763,-380.76,0.00010955,2]
[347676525,1736050260772,-500.0,0.00010955,2]
[347676526,1736050260782,-801.11,0.00010955,2]
[347676527,1736050260791,-500.0,0.00010955,2]
[347676528,1736050260800,-500.0,0.00010955,2]
[347676529,1736050260813,-191.44,0.00010955,2]
[347676530,1736050260824,-500.0,0.00010955,2]
[347676531,1736050260835,-619.66,0.00010955,2]
[347676532,1736050260844,-500.0,0.00010955,2]
[347676533,1736050260854,-1135.67,0.00010955,2]
[347676534,1736050260865,-570.62,0.00010955,2]
[347676535,1736050260875,-500.0,0.00010955,2]
[347676536,1736050260886,-585.66,0.00010955,2]
[347676537,1736050260898,-428.73,0.00010955,2]
[347676538,1736050260907,-500.0,0.00010955,2]
[347676539,1736050260917,-2695.18,0.00010955,2]
[347676540,1736050260928,-500.0,0.00010955,2]
[347676541,1736050260938,-500.0,0.00010955,2]
[347676542,1736050260949,-500.0,0.00010955,2]
[347676543,1736050260959,-500.0,0.00010955,2]
[347676544,1736050260968,-500.0,0.00010955,2]
[347676545,1736050260979,-500.0,0.00010955,2]
[347676546,1736050260989,-500.0,0.00010955,2]
[347676547,1736050260998,-500.0,0.00010955,2]
[347676548,1736050261008,-584.4,0.00010955,2]
[347676549,1736050261018,-500.0,0.00010955,2]
[347676550,1736050261027,-793.74,0.00010955,2]
[347676551,1736050261036,-1317.85,0.00010955,2]
[347676552,1736050261045,-500.0,0.00010955,2]
[347676553,1736050261054,-734.46,0.00010955,2]
[347676554,1736050261062,-500.0,0.00010955,2]
[347676555,1736050261071,-1563.26,0.00010955,2]
[347676556,1736050261080,-1065.34,0.00010955,2]
[347676557,1736050261090,-2592.77,0.00010955,2]
[347676558,1736050261099,-500.0,0.00010955,2]
[347676559,1736050261108,-205.42,0.00010955,2]
[347676560,1736050261118,-1509.41,0.00010955,2]
[347676561,1736050261126,-500.0,0.00010955,2]
[347676562,1736050261135,-169.06,0.00010955,2]
[347676563,1736050261144,-595.79,0.00010955,2]
[347676564,1736050261153,-500.0,0.00010955,2]
[347676565,1736050261162,-501.29210392,0.00010955,2]
[347676566,1736050261171,-602.06,0.00010955,2]
[347676567,1736050261278,-640.94,0.00010955,2]
[347676568,1736050261288,-623.24,0.00010955,2]
[347676569,1736050261298,-1257.83,0.00010955,2]
[347676570,1736050261308,-500.0,0.00010955,2]
[347676571,1736050261318,-1749.11,0.00010955,2]
[347676572,1736050261327,-500.0,0.00010955,2]
[347676573,1736050261337,-174.41506897,0.00010956,2]
[347676574,1736050261346,-500.0,0.00010956,2]
[347676575,1736050261355,-430.74,0.00010956,2]
[347676576,1736050261364,-561.49561084,0.00010956,2]
[347676577,1736050261374,-384.67,0.00010956,2]
[347676578,1736050261383,-500.0,0.00010956,2]
[347676579,1736050261392,-500.0,0.00010956,2]
[347676580,1736050261401,-500.0,0.00010956,2]
[347676581,1736050261410,-500.0,0.00010956,2]
[347676582,1736050261419,-577.21868582,0.00010956,2]
[347676583,1736050261429,-500.0,0.00010956,2]
[347676584,1736050261438,-500.0,0.00010956,2]
[347676585,1736050261447,-500.0,0.00010956,2]
[347676586,1736050261456,-500.0,0.00010956,2]
[347676587,1736050261465,-715.6,0.00010956,2]
[347676588,1736050261475,-3000.0,0.00010956,2]
[347676589,1736050261485,-591.7966935,0.00010956,2]
[347676590,1736050261494,-231.14382307,0.00010956,2]
[347676591,1736050261503,-500.0,0.00010956,2]
[347676592,1736050261512,-207.82556542,0.00010956,2]
[347676593,1736050261522,-500.0,0.00010956,2]
[347676594,1736050261532,-445.6867363,0.00010956,2]
[347676595,1736050261541,-500.0,0.00010956,2]
[347676596,1736050261548,-500.0,0.00010956,2]
[347676597,1736050261557,-500.0,0.00010956,2]
[347676598,1736050261567,-500.0,0.00010956,2]
[347676599,1736050261576,-728.56,0.00010956,2]
[347676600,1736050261585,-500.0,0.00010958,2]
[347676601,1736050261595,-500.0,0.00010958,2]
[347676602,1736050261607,-500.0,0.00010958,2]
[347676603,1736050261616,-500.0,0.00010958,2]
[347676604,1736050261626,-500.0,0.00010958,2]
[347676605,1736050261635,-500.0,0.00010958,2]
[347676606,1736050261646,-500.0,0.00010958,2]
[347676607,1736050261655,-500.0,0.00010958,2]
[347676608,1736050261665,-500.0,0.00010958,2]
[347676609,1736050261674,-493.75534422,0.00010958,2]
[347676610,1736050261683,-550.0,0.00011,2]
[347676611,1736050261692,-1000.0,0.00011009,2]
[347676612,1736050261701,-1000.0,0.000112,2]
[347676613,1736050261711,-500.0,0.00011228,2]
[347676614,1736050261720,-523.6010236,0.00011228,2]
[347676615,1736050261729,-500.0,0.00011228,2]
[347676616,1736050261741,-647.04,0.00011228,2]
[347676617,1736050261754,-697.32,0.00011228,2]
[347676618,1736050261763,-1974.55,0.00011228,2]
[347676619,1736050261772,-500.0,0.00011228,2]
[347676620,1736050261781,-500.0,0.00011228,2]
[347676621,1736050261791,-500.0,0.00011228,2]
[347676622,1736050261800,-500.0,0.00011228,2]
[347676623,1736050261808,-500.0,0.00011229,2]
[347676624,1736050261816,-500.0,0.00011229,2]
[347676625,1736050261826,-500.0,0.00011229,2]
[347676626,1736050261835,-516.49328578,0.00011229,2]
[347676627,1736050261844,-500.0,0.00011229,2]
[347676628,1736050261853,-157.118634,0.00011229,2]
[347676629,1736050261862,-500.0,0.00011229,2]
[347676630,1736050261871,-191.91,0.00011229,2]
[347676631,1736050261880,-500.0,0.00011229,2]
[347676632,1736050261889,-205.04,0.00011229,2]
[347676633,1736050261899,-500.0,0.00011229,2]
[347676634,1736050261909,-500.0,0.00011229,2]
[347676635,1736050261919,-383.96881128,0.00011229,2]
[347676636,1736050261929,-500.0,0.00011229,2]
[347676637,1736050261939,-204.02587077,0.00011229,2]
[347676638,1736050261948,-184.79,0.00011229,2]
[347676639,1736050261958,-500.0,0.00011229,2]
[347676640,1736050261967,-500.0,0.00011229,2]
[347676641,1736050261976,-500.0,0.00011229,2]
[347676642,1736050261985,-500.0,0.00011229,2]
[347676643,1736050261994,-276.2,0.00011229,2]
[347676644,1736050262003,-336.98,0.00011229,2]
[347676645,1736050262012,-500.0,0.00011229,2]
[347676646,1736050262021,-500.0,0.00011229,2]
[347676647,1736050262030,-1213.93,0.00011229,2]
[347676648,1736050262039,-1213.93,0.00011229,2]
[347676649,1736050262048,-500.0,0.00011229,2]
[347676650,1736050262058,-304.48024488,0.00011229,2]
[347676651,1736050262067,-624.44353535,0.00011229,2]
[347676652,1736050262075,-500.0,0.00011229,2]
[347676653,1736050262084,-500.0,0.00011229,2]
[347676654,1736050262093,-286.4207012,0.00011229,2]
[347676655,1736050262102,-207.62,0.00011229,2]
[347676656,1736050262111,-500.0,0.00011229,2]
[347676657,1736050262122,-500.0,0.00011229,2]
[347676658,1736050262132,-500.0,0.00011229,2]
[347676659,1736050262141,-500.0,0.00011229,2]
[347676660,1736050262151,-179.65,0.00011229,2]
[347676661,1736050262161,-500.0,0.00011229,2]
[347676662,1736050262171,-342.88,0.00011229,2]
[347676663,1736050262181,-610.2,0.00011229,2]
[347676664,1736050262190,-500.0,0.00011229,2]
[347676665,1736050262199,-584.77,0.00011229,2]
[347676666,1736050262208,-372.8,0.00011229,2]
[347676667,1736050262218,-500.0,0.00011229,2]
[347676668,1736050262227,-500.0,0.00011229,2]
[347676669,1736050262236,-921.75,0.00011229,2]
[347676670,1736050262245,-883.34,0.00011229,2]
[347676671,1736050262254,-500.0,0.00011229,2]
[347676672,1736050262265,-500.0,0.00011229,2]
[347676673,1736050262274,-500.0,0.00011229,2]
[347676674,1736050262283,-500.0,0.00011229,2]
[347676675,1736050262292,-500.0,0.00011229,2]
[347676676,1736050262302,-493.864676,0.00011229,2]
[347676677,1736050262311,-500.0,0.00011229,2]
[347676678,1736050262322,-493.864676,0.00011229,2]
[347676679,1736050262341,-500.0,0.00011229,2]
[347676680,1736050262350,-215.03150598,0.00011229,2]
[347676681,1736050262360,-555.42,0.00011229,2]
[347676682,1736050262370,-500.0,0.00011229,2]
[347676683,1736050262380,-500.0,0.00011229,2]
[347676684,1736050262389,-500.0,0.00011229,2]
[347676685,1736050262398,-500.0,0.00011229,2]
[347676686,1736050262407,-500.0,0.00011229,2]
[347676687,1736050262417,-500.0,0.00011229,2]
[347676688,1736050262426,-500.0,0.00011229,2]
[347676689,1736050262435,-500.0,0.00011229,2]
[347676690,1736050262445,-500.0,0.00011229,2]
[347676691,1736050262455,-1824.23,0.00011229,2]
[347676692,1736050262464,-1121.67,0.00011229,2]
[347676693,1736050262473,-265.5,0.00011229,2]
[347676694,1736050262482,-500.0,0.00011229,2]
[347676695,1736050262492,-500.0,0.00011229,2]
[347676696,1736050262501,-500.0,0.00011229,2]
[347676697,1736050262511,-500.0,0.00011229,2]
[347676698,1736050262520,-500.0,0.00011229,2]
[347676699,1736050262530,-500.0,0.00011229,2]
[347676700,1736050262539,-500.0,0.00011229,2]
[347676701,1736050262548,-151.0,0.00011229,2]
[347676702,1736050262558,-500.0,0.00011229,2]
[347676703,1736050262567,-604.25360392,0.00011229,2]
[347676704,1736050262576,-500.0,0.00011229,2]
[347676705,1736050262585,-235.25,0.00011229,2]
[347676706,1736050262595,-1537.83,0.00011229,2]
[347676707,1736050262609,-500.0,0.00011229,2]
[347676708,1736050262619,-646.57,0.00011229,2]
[347676709,1736050262628,-500.0,0.00011229,2]
[347676710,1736050262638,-500.0,0.00011229,2]
[347676711,1736050262649,-500.0,0.00011229,2]
[347676712,1736050262659,-500.0,0.00011229,2]
[347676713,1736050262668,-427.12262172,0.00011229,2]
[347676714,1736050262677,-500.0,0.00011229,2]
[347676715,1736050262686,-500.0,0.00011229,2]
[347676716,1736050262695,-1051.76,0.00011229,2]
[347676717,1736050262704,-500.0,0.00011229,2]
[347676718,1736050262713,-500.0,0.00011229,2]
[347676719,1736050262723,-500.0,0.00011229,2]
[347676720,1736050262732,-498.7,0.00011229,2]
[347676721,1736050262745,-500.0,0.00011229,2]
[347676722,1736050262754,-500.0,0.00011229,2]
[347676723,1736050262764,-297.78,0.00011229,2]
[347676724,1736050262773,-500.0,0.00011229,2]
[347676725,1736050262782,-500.0,0.00011229,2]
[347676726,1736050262791,-500.0,0.00011229,2]
[347676727,1736050262801,-500.0,0.00011229,2]
[347676728,1736050262812,-500.0,0.00011229,2]
[347676729,1736050262821,-500.0,0.00011229,2]
[347676730,1736050262831,-500.0,0.00011229,2]
[347676731,1736050262839,-500.0,0.00011229,2]
[347676732,1736050262849,-500.0,0.00011229,2]
[347676733,1736050262859,-2054.529188,0.00011229,2]
[347676734,1736050262868,-500.0,0.00011229,2]
[347676735,1736050262877,-616.88,0.00011229,2]
[347676736,1736050262887,-500.0,0.00011229,2]
[347676737,1736050262896,-500.0,0.00011229,2]
[347676738,1736050262997,-156.573944,0.00011229,2]
[347676739,1736050263007,-500.0,0.00011229,2]
[347676740,1736050263016,-500.0,0.00011229,2]
[347676741,1736050263025,-500.0,0.00011229,2]
[347676742,1736050263034,-2485.103104,0.00011229,2]
[347676743,1736050263042,-500.0,0.00011229,2]
[347676744,1736050263051,-500.0,0.00011229,2]
[347676745,1736050263061,-500.0,0.00011229,2]
[347676746,1736050263070,-500.0,0.00011229,2]
[347676747,1736050263079,-500.0,0.00011229,2]
[347676748,1736050263088,-500.0,0.00011229,2]
[347676749,1736050263097,-500.0,0.00011229,2]
[347676750,1736050263106,-500.0,0.00011229,2]
[347676751,1736050263115,-500.0,0.00011229,2]
[347676752,1736050263125,-500.0,0.00011229,2]
[347676753,1736050263134,-500.0,0.00011229,2]
[347676754,1736050263144,-500.0,0.00011229,2]
[347676755,1736050263153,-210.6,0.00011229,2]
[347676756,1736050263163,-1702.81,0.00011229,2]
[347676757,1736050263173,-1702.81,0.00011229,2]
[347676758,1736050263182,-500.0,0.00011229,2]
[347676759,1736050263191,-500.0,0.00011229,2]
[347676760,1736050263200,-774.42,0.00011229,2]
[347676761,1736050263209,-742.16,0.00011229,2]
[347676762,1736050263218,-500.0,0.00011229,2]
[347676763,1736050263227,-648.21,0.00011229,2]
[347676764,1736050263237,-500.0,0.00011229,2]
[347676765,1736050263247,-1223.22,0.00011229,2]
[347676766,1736050263256,-445.13947916,0.00011229,2]
[347676767,1736050263265,-500.0,0.00011229,2]
[347676768,1736050263274,-855.88,0.00011229,2]
[347676769,1736050263284,-584.92,0.00011229,2]
[347676770,1736050263293,-500.0,0.00011229,2]
[347676771,1736050263303,-2411.56,0.00011229,2]
[347676772,1736050263313,-610.1,0.00011229,2]
[347676773,1736050263323,-541.29,0.00011229,2]
[347676774,1736050263332,-1220.88,0.00011229,2]
[347676775,1736050263342,-500.0,0.00011229,2]
[347676776,1736050263351,-500.0,0.00011229,2]
[347676777,1736050263361,-2183.4,0.00011229,2]
[347676778,1736050263372,-213.85,0.00011229,2]
[347676779,1736050263381,-500.0,0.00011229,2]
[347676780,1736050263391,-5564.09,0.00011229,2]
[347676781,1736050263401,-500.0,0.00011229,2]
[347676782,1736050263411,-443.44,0.00011229,2]
[347676783,1736050263420,-500.0,0.00011229,2]
[347676784,1736050263429,-1048.42,0.00011229,2]
[347676785,1736050263439,-2041.17,0.00011229,2]